lending/lending_fUSD_20260110
["ID","MTS","AMOUNT","RATE_DAILY","PERIOD"]
[401256004,1768078245775,-150.0,0.00016762,2]
[401256005,1768078245785,-16402.69904283,0.00016767,2]
[401256006,1768078245797,-150.0,0.00016768,2]
[401256007,1768078245806,-272.39333188,0.00016779,2]
[401256008,1768078245816,-206.72,0.00016785,2]
[401256009,1768078245825,-150.0,0.000168,2]
[401256010,1768078245835,-150.0,0.000168,2]
[401256011,1768078245845,-150.0,0.000168,2]
[401256012,1768078245855,-150.0,0.000168,2]
[401256013,1768078245865,-150.0,0.000168,2]
[401256014,1768078245874,-200.0,0.00016804,2]
[401256015,1768078245882,-200.0,0.00016804,2]
[401256016,1768078245891,-500.0,0.00016804,2]
[401256017,1768078245901,-2000.0,0.00016816,2]
[401256018,1768078245910,-2000.0,0.00016816,2]
[401256019,1768078245920,-987.99755872,0.00016816,2]
[401256020,1768078245929,-2000.0,0.00016816,2]
[401256021,1768078245939,-321.61952287,0.00016816,2]
[401256022,1768078245948,-1476.3156368,0.00016816,2]
[401256023,1768078245958,-2000.0,0.00016816,2]
[401256024,1768078245967,-150.0,0.00016821,2]
[401256025,1768078245976,-166.66,0.00016824,2]
[401256026,1768078245986,-150.0,0.00016826,2]
[401256027,1768078245995,-150.0,0.00016835,2]
[401256028,1768078246004,-1000.0,0.00016852,2]
[401256029,1768078246014,-290.33169083,0.00016859,2]
[401256030,1768078246023,-150.0,0.00016863,2]
[401256031,1768078246032,-150.0,0.00016867,2]
[401256032,1768078246041,-150.0,0.00016875,2]
[401256033,1768078246050,-150.0,0.00016886,2]
[401256034,1768078246059,-150.0,0.00016904,2]
[401256035,1768078246068,-150.0,0.00016933,2]
[401256036,1768078246078,-150.0,0.00016941,2]
[401256037,1768078246087,-433.0,0.00016949,2]
[401256038,1768078246096,-150.0,0.00016958,2]
[401256039,1768078246106,-150.0,0.00016971,2]
[401256040,1768078246115,-150.0,0.00016983,2]
[401256041,1768078246124,-500.0,0.00016986,2]
[401256042,1768078246134,-500.0,0.00016986,2]
[401256043,1768078246143,-500.0,0.00016986,2]
[401256044,1768078246152,-500.0,0.00016986,2]
[401256045,1768078246161,-500.0,0.00016986,2]
[401256046,1768078246170,-500.0,0.00016986,2]
[401256047,1768078246180,-1589.98,0.00016986,2]
[401256048,1768078246189,-150.0,0.00016987,2]
[401256049,1768078246198,-150.0,0.00017,2]
[401256050,1768078246207,-250.0,0.00017,2]
[401256051,1768078246218,-571.95,0.00017003,2]
[401256052,1768078246228,-150.0,0.00017047,2]
[401256053,1768078246238,-16402.69904283,0.0001705,2]
[401256054,1768078246248,-150.0,0.00017053,2]
[401256055,1768078246256,-1140.471,0.00017053,2]
[401256056,1768078246265,-150.0,0.00017057,2]
[401256057,1768078246273,-150.0,0.00017061,2]
[401256058,1768078246283,-150.0,0.00017067,2]
[401256059,1768078246292,-150.0,0.000171,2]
[401256060,1768078246300,-150.0,0.000171,2]
[401256061,1768078246308,-150.0,0.000171,2]
[401256062,1768078246318,-150.0,0.000171,2]
[401256063,1768078246327,-500.0,0.00017107,2]
[401256064,1768078246337,-500.0,0.00017107,2]
[401256065,1768078246347,-500.0,0.00017107,2]
[401256066,1768078246357,-500.0,0.00017107,2]
[401256067,1768078246367,-500.0,0.00017107,2]
[401256068,1768078246376,-327.49083589,0.00017107,2]
[401256069,1768078246385,-500.0,0.00017107,2]
[401256070,1768078246395,-500.0,0.00017107,2]
[401256071,1768078246404,-839.1,0.00017112,2]
[401256072,1768078246413,-150.0,0.00017133,2]
[401256073,1768078246422,-150.0,0.00017139,2]
[401256074,1768078246432,-150.0,0.00017143,2]
[401256075,1768078246441,-150.0,0.00017147,2]
[401256076,1768078246450,-150.0,0.00017153,2]
[401256077,1768078246459,-150.0,0.000172,2]
[401256078,1768078246470,-150.0,0.00017212,2]
[401256079,1768078246479,-150.0,0.00017217,2]
[401256080,1768078246488,-177.9,0.00017223,2]
[401256081,1768078246497,-150.0,0.00017229,2]
[401256082,1768078246506,-150.0,0.00017242,2]
[401256083,1768078246518,-150.0,0.00017255,2]
[401256084,1768078246527,-150.0,0.00017259,2]
[401256085,1768078246537,-1589.98,0.0001726,2]
[401256086,1768078246547,-150.0,0.00017267,2]
[401256087,1768078246558,-150.0,0.00017296,2]
[401256088,1768078246567,-250.0,0.00017311,2]
[401256089,1768078246576,-150.0,0.00017314,2]
[401256090,1768078246584,-150.0,0.00017325,2]
[401256091,1768078246593,-150.0,0.00017333,2]
[401256092,1768078246603,-16402.69904283,0.00017334,2]
[401256093,1768078246612,-150.0,0.00017337,2]
[401256094,1768078246622,-200.0,0.00017352,2]
[401256095,1768078246632,-1500.0,0.00017362,2]
[401256096,1768078246643,-166.66,0.00017362,2]
[401256097,1768078246652,-1405.0,0.00017362,2]
[401256098,1768078246662,-1330.0,0.00017362,2]
[401256099,1768078246671,-614.0,0.00017362,2]
[401256100,1768078246680,-3468.0,0.00017362,2]
[401256101,1768078246690,-1266.0,0.00017362,2]
[401256102,1768078246701,-505.0,0.00017362,2]
[401256103,1768078246711,-1201.0,0.00017362,2]
[401256104,1768078246721,-914.0,0.00017362,2]
[401256105,1768078246733,-150.0,0.00017362,2]
[401256106,1768078246743,-4820.0,0.00017362,2]
[401256107,1768078246753,-6554.0,0.00017362,2]
[401256108,1768078246763,-2500.0,0.00017364,2]
[401256109,1768078246772,-2500.0,0.00017364,2]
[401256110,1768078246782,-2500.0,0.00017364,2]
[401256111,1768078246791,-150.0,0.00017365,2]
[401256112,1768078246801,-150.0,0.00017374,2]
[401256113,1768078246810,-150.0,0.00017379,2]
[401256114,1768078246819,-150.0,0.000174,2]
[401256115,1768078246828,-150.0,0.000174,2]
[401256116,1768078246839,-150.0,0.000174,2]
[401256117,1768078246848,-150.0,0.000174,2]
[401256118,1768078246857,-150.0,0.000174,2]
[401256119,1768078246867,-150.0,0.00017432,2]
[401256120,1768078246876,-150.0,0.00017437,2]
[401256121,1768078246885,-150.0,0.00017441,2]
[401256122,1768078246895,-150.0,0.00017452,2]
[401256123,1768078246904,-150.0,0.00017467,2]
[401256124,1768078246915,-150.0,0.00017471,2]
[401256125,1768078246924,-150.0,0.00017486,2]
[401256126,1768078246933,-158.68188667,0.00017488,2]
[401256127,1768078246943,-1000.0,0.00017494,2]
[401256128,1768078246952,-2000.0,0.000175,2]
[401256129,1768078246960,-150.0,0.00017503,2]
[401256130,1768078246969,-150.0,0.00017526,2]
[401256131,1768078246978,-150.0,0.0001753,2]
[401256132,1768078246987,-150.0,0.00017533,2]
[401256133,1768078246996,-1589.99209656,0.00017534,2]
[401256134,1768078247005,-1000.0,0.00017541,2]
[401256135,1768078247013,-500.0,0.00017546,2]
[401256136,1768078247023,-500.0,0.00017546,2]
[401256137,1768078247031,-500.0,0.00017546,2]
[401256138,1768078247040,-150.0,0.0001755,2]
[401256139,1768078247048,-150.0,0.00017566,2]
[401256140,1768078247057,-2351.0,0.00017568,2]
[401256141,1768078247065,-150.0,0.00017571,2]
[401256142,1768078247074,-150.0,0.00017576,2]
[401256143,1768078247082,-150.0,0.000176,2]
[401256144,1768078247091,-150.0,0.00017609,2]
[401256145,1768078247100,-16402.69904283,0.00017617,2]
[401256146,1768078247109,-150.0,0.00017621,2]
[401256147,1768078247119,-150.0,0.00017628,2]
[401256148,1768078247127,-150.0,0.00017657,2]
[401256149,1768078247136,-150.0,0.00017662,2]
[401256150,1768078247145,-150.0,0.00017667,2]
[401256151,1768078247154,-834.0,0.0001768,2]
[401256152,1768078247163,-834.0,0.0001768,2]
[401256153,1768078247172,-150.0,0.00017682,2]
[401256154,1768078247181,-150.0,0.00017687,2]
[401256155,1768078247190,-150.0,0.0001769,2]
[401256156,1768078247199,-150.0,0.000177,2]
[401256157,1768078247208,-150.0,0.000177,2]
[401256158,1768078247218,-839.1,0.00017709,2]
[401256159,1768078247228,-150.0,0.00017716,2]
[401256160,1768078247237,-1000.0,0.00017724,2]
[401256161,1768078247246,-150.0,0.00017733,2]
[401256162,1768078247256,-1000.0,0.0001774,2]
[401256163,1768078247269,-150.0,0.00017743,2]
[401256164,1768078247281,-1000.0,0.00017746,2]
[401256165,1768078247293,-1000.0,0.00017749,2]
[401256166,1768078247305,-150.0,0.00017752,2]
[401256167,1768078247316,-1000.0,0.00017752,2]
[401256168,1768078247327,-1000.0,0.00017765,2]
[401256169,1768078247337,-150.0,0.00017765,2]
[401256170,1768078247347,-1000.0,0.00017767,2]
[401256171,1768078247356,-150.0,0.00017775,2]
[401256172,1768078247366,-616.50589084,0.00017785,2]
[401256173,1768078247376,-150.0,0.00017788,2]
[401256174,1768078247387,-150.0,0.000178,2]
[401256175,1768078247398,-214.12448155,0.00017808,2]
[401256176,1768078247408,-150.0,0.00017811,2]
[401256177,1768078247419,-150.0,0.00017814,2]
[401256178,1768078247430,-500.0,0.00017819,2]
[401256179,1768078247440,-500.0,0.00017819,2]
[401256180,1768078247451,-500.0,0.00017819,2]
[401256181,1768078247462,-500.0,0.00017819,2]
[401256182,1768078247473,-500.0,0.00017819,2]
[401256183,1768078247485,-500.0,0.00017819,2]
[401256184,1768078247495,-934.95383,0.0001782,2]
[401256185,1768078247506,-934.95384,0.0001782,2]
[401256186,1768078247518,-151.0,0.0001782,2]
[401256187,1768078247528,-151.0,0.0001782,2]
[401256188,1768078247539,-151.0,0.0001782,2]
[401256189,1768078247550,-151.0,0.0001782,2]
[401256190,1768078247560,-151.0,0.0001782,2]
[401256191,1768078247571,-151.0,0.0001782,2]
[401256192,1768078247581,-151.0,0.0001782,2]
[401256193,1768078247592,-151.0,0.0001782,2]
[401256194,1768078247602,-161.616617,0.0001782,2]
[401256195,1768078247612,-150.0,0.00017829,2]
[401256196,1768078247624,-934.95384,0.0001783,2]
[401256197,1768078247636,-150.0,0.00017843,2]
[401256198,1768078247647,-200.0,0.00017856,2]
[401256199,1768078247658,-934.95384,0.0001786,2]
[401256200,1768078247669,-998.0,0.00017863,2]
[401256201,1768078247679,-150.0,0.00017867,2]
[401256202,1768078247691,-150.0,0.00017876,2]
[401256203,1768078247702,-934.95384,0.0001788,2]
[401256204,1768078247715,-1740.0035,0.00017883,2]
[401256205,1768078247726,-150.0,0.00017887,2]
[401256206,1768078247738,-150.0,0.00017894,2]
[401256207,1768078247750,-166.66,0.00017899,2]
[401256208,1768078247761,-690.78149451,0.000179,2]
[401256209,1768078247772,-544.48855042,0.000179,2]
[401256210,1768078247784,-270.1062705,0.000179,3]
[401256211,1768078247799,-16402.69904283,0.000179,2]
[401256212,1768078247810,-186.24381303,0.000179,2]
[401256213,1768078247821,-5719.4937703,0.000179,2]
[401256214,1768078247833,-294.7401385,0.000179,2]
[401256215,1768078247845,-864.09133487,0.000179,2]
[401256216,1768078247856,-197.343206,0.000179,2]
[401256217,1768078247868,-510.947712,0.000179,2]
[401256218,1768078247879,-510.947712,0.000179,2]
[401256219,1768078247890,-172.741292,0.000179,2]
[401256220,1768078247902,-510.947712,0.000179,2]
[401256221,1768078247913,-172.741292,0.000179,2]
[401256222,1768078247924,-510.947712,0.000179,2]
[401256223,1768078247935,-151.0,0.000179,2]
[401256224,1768078247947,-1455.47203649,0.000179,2]
[401256225,1768078247957,-172.741292,0.000179,2]
[401256226,1768078247968,-150.0,0.00017905,2]
[401256227,1768078247980,-934.95384,0.0001791,2]
[401256228,1768078247991,-1000.0,0.00017912,2]
[401256229,1768078248002,-1000.0,0.00017912,2]
[401256230,1768078248014,-1000.0,0.00017912,2]
[401256231,1768078248026,-150.0,0.00017914,2]
[401256232,1768078248038,-150.0,0.00017922,2]
[401256233,1768078248049,-150.0,0.00017933,2]
[401256234,1768078248060,-150.0,0.00017938,2]
[401256235,1768078248071,-1000.0,0.00017949,2]
[401256236,1768078248081,-79511.7338533,0.00017963,2]
[401256237,1768078248092,-3028.3605136,0.00017963,2]
[401256238,1768078248103,-525.03126034,0.00017967,2]
[401256239,1768078248113,-500.0,0.00017967,2]
[401256240,1768078248123,-500.0,0.00017967,2]
[401256241,1768078248133,-500.0,0.00017967,2]
[401256242,1768078248143,-500.0,0.00017967,2]
[401256243,1768078248153,-500.0,0.00017967,2]
[401256244,1768078248163,-500.0,0.00017967,2]
[401256245,1768078248174,-500.0,0.00017967,2]
[401256246,1768078248185,-201406.7498666,0.00017968,2]
[401256247,1768078248196,-37128.4516933,0.00017968,2]
[401256248,1768078248208,-6225.497871,0.00017968,2]
[401256249,1768078248221,-288.687691,0.00017968,2]
[401256250,1768078248232,-288.687691,0.00017968,2]
[401256251,1768078248241,-151.0,0.00017968,2]
[401256252,1768078248252,-151.0,0.00017968,2]
[401256253,1768078248261,-151.0,0.00017968,2]
[401256254,1768078248271,-151.0,0.00017968,2]
[401256255,1768078248281,-829.372755,0.00017968,2]
[401256256,1768078248291,-829.372755,0.00017968,2]
[401256257,1768078248303,-829.372755,0.00017968,2]
[401256258,1768078248314,-829.372755,0.00017968,2]
[401256259,1768078248324,-151.0,0.00017968,2]
[401256260,1768078248336,-151.0,0.00017968,2]
[401256261,1768078248347,-223.439387,0.00017968,2]
[401256262,1768078248358,-151.0,0.00017968,2]
[401256263,1768078248369,-151.0,0.00017968,2]
[401256264,1768078248379,-151.0,0.00017968,2]
[401256265,1768078248389,-151.0,0.00017968,2]
[401256266,1768078248400,-151.0,0.00017968,2]
[401256267,1768078248410,-510.947712,0.00017968,2]
[401256268,1768078248420,-510.947712,0.00017968,2]
[401256269,1768078248430,-172.741292,0.00017968,2]
[401256270,1768078248441,-510.947712,0.00017968,2]
[401256271,1768078248451,-172.741292,0.00017968,2]
[401256272,1768078248461,-510.947712,0.00017968,2]
[401256273,1768078248472,-151.0,0.00017968,2]
[401256274,1768078248482,-500.0,0.00017972,2]
[401256275,1768078248492,-500.0,0.00017973,2]
[401256276,1768078248502,-500.0,0.00017973,2]
[401256277,1768078248513,-500.0,0.00017973,2]
[401256278,1768078248523,-380.05360747,0.00017973,2]
[401256279,1768078248533,-500.0,0.00017973,2]
[401256280,1768078248544,-500.0,0.00017973,2]
[401256281,1768078248554,-500.0,0.00017973,2]
[401256282,1768078248564,-500.0,0.00017973,2]
[401256283,1768078248574,-500.0,0.00017973,2]
[401256284,1768078248585,-500.0,0.00017973,2]
[401256285,1768078248595,-500.0,0.00017973,2]
[401256286,1768078248605,-500.0,0.00017973,2]
[401256287,1768078248615,-500.0,0.00017973,2]
[401256288,1768078248625,-500.0,0.00017973,2]
[401256289,1768078248635,-500.0,0.00017973,2]
[401256290,1768078248645,-500.0,0.00017973,2]
[401256291,1768078248656,-500.0,0.00017973,2]
[401256292,1768078248666,-500.0,0.00017973,2]
[401256293,1768078248676,-500.0,0.00017973,2]
[401256294,1768078248686,-500.0,0.00017973,2]
[401256295,1768078248697,-500.0,0.00017973,2]
[401256296,1768078248708,-500.0,0.00017973,2]
[401256297,1768078248718,-632.76984978,0.00017973,2]
[401256298,1768078248729,-500.0,0.00017973,2]
[401256299,1768078248740,-500.0,0.00017973,2]
[401256300,1768078248750,-500.0,0.00017973,2]
[401256301,1768078248761,-171.83605725,0.00017973,2]
[401256302,1768078248771,-183.2165965,0.00017973,2]
[401256303,1768078248782,-500.0,0.00017973,2]
[401256304,1768078248793,-500.0,0.00017973,2]
[401256305,1768078248803,-500.0,0.00017973,2]
[401256306,1768078248814,-500.0,0.00017973,2]
[401256307,1768078248825,-500.0,0.00017973,2]
[401256308,1768078248836,-500.0,0.00017973,2]
[401256309,1768078248846,-200.0,0.00017973,2]
[401256310,1768078248857,-1000.0,0.00017976,2]
[401256311,1768078248867,-500.0,0.00017982,2]
[401256312,1768078248877,-74574.6271231,0.00017983,2]
[401256313,1768078248887,-1190.5330446,0.00017983,2]
[401256314,1768078248898,-500.0,0.00017989,2]
[401256315,1768078248909,-500.0,0.00017989,2]
[401256316,1768078248919,-500.0,0.00017989,2]
[401256317,1768078248929,-314.44792646,0.00017989,2]
[401256318,1768078248940,-1428.32031009,0.0001799,2]
[401256319,1768078248951,-1428.32031009,0.0001799,2]
[401256320,1768078248961,-1990.229,0.00017998,2]
[401256321,1768078248971,-500.0,0.00017999,2]
[401256322,1768078248980,-500.0,0.00017999,2]
[401256323,1768078248990,-320.87822696,0.00017999,2]
[401256324,1768078249000,-500.0,0.00017999,2]
[401256325,1768078249010,-500.0,0.00017999,2]
[401256326,1768078249020,-500.0,0.00017999,2]
[401256327,1768078249031,-437.58562247,0.00017999,2]
[401256328,1768078249041,-500.0,0.00017999,2]
[401256329,1768078249051,-500.0,0.00017999,2]
[401256330,1768078249061,-500.0,0.00017999,2]
[401256331,1768078249071,-500.0,0.00017999,2]
[401256332,1768078249081,-409.51044567,0.00017999,2]
[401256333,1768078249092,-500.0,0.00017999,2]
[401256334,1768078249102,-500.0,0.00017999,2]
[401256335,1768078249112,-500.0,0.00017999,2]
[401256336,1768078249123,-500.0,0.00017999,2]
[401256337,1768078249133,-500.0,0.00017999,2]
[401256338,1768078249143,-500.0,0.00017999,2]
[401256339,1768078249153,-500.0,0.00017999,2]
[401256340,1768078249163,-500.0,0.00017999,2]
[401256341,1768078249177,-500.0,0.00017999,2]
[401256342,1768078249187,-500.0,0.00017999,2]
[401256343,1768078249198,-500.0,0.00017999,2]
[401256344,1768078249208,-500.0,0.00017999,2]
[401256345,1768078249218,-500.0,0.00017999,2]
[401256346,1768078249229,-500.0,0.00017999,2]
[401256347,1768078249240,-500.0,0.00017999,2]
[401256348,1768078249250,-500.0,0.00017999,2]
[401256349,1768078249260,-500.0,0.00017999,2]
[401256350,1768078249271,-500.0,0.00017999,2]
[401256351,1768078249281,-500.0,0.00017999,2]
[401256352,1768078249291,-395.65252229,0.00017999,2]
[401256353,1768078249301,-288.8563921,0.00017999,2]
[401256354,1768078249312,-500.0,0.00017999,2]
[401256355,1768078249322,-500.0,0.00017999,2]
[401256356,1768078249332,-500.0,0.00017999,2]
[401256357,1768078249342,-500.0,0.00017999,2]
[401256358,1768078249353,-500.0,0.00017999,2]
[401256359,1768078249363,-460.58029054,0.00017999,2]
[401256360,1768078249372,-500.0,0.00017999,2]
[401256361,1768078249382,-500.0,0.00017999,2]
[401256362,1768078249391,-618.39502557,0.00017999,2]
[401256363,1768078249401,-500.0,0.00017999,2]
[401256364,1768078249411,-500.0,0.00017999,2]
[401256365,1768078249421,-600.81,0.00017999,2]
[401256366,1768078249432,-300.0,0.00017999,2]
[401256367,1768078249444,-300.0,0.00017999,2]
[401256368,1768078249455,-286.04821059,0.00018,2]
[401256369,1768078249466,-196.21798024,0.00018,2]
[401256370,1768078249476,-154.34791437,0.00018,2]
[401256371,1768078249487,-151.06129179,0.00018,2]
[401256372,1768078249497,-223.10788253,0.00018,2]
[401256373,1768078249507,-274.86810546,0.00018,2]
[401256374,1768078249520,-216.79771002,0.00018,2]
[401256375,1768078249532,-156.68286018,0.00018,2]
[401256376,1768078249543,-236.87153921,0.00018,2]
[401256377,1768078249553,-178.17676299,0.00018,2]
[401256378,1768078249563,-231.22039699,0.00018,2]
[401256379,1768078249573,-157.59943203,0.00018,2]
[401256380,1768078249583,-244.97032636,0.00018,2]
[401256381,1768078249593,-150.0,0.00018,2]
[401256382,1768078249603,-247.12115074,0.00018,2]
[401256383,1768078249613,-1929268.76844883,0.00018,2]
[401256384,1768078249898,-172.741292,0.00017968,2]
[401256385,1768078249908,-151.9736426,0.00018,2]
[401256386,1768078251184,-2437.0,0.00017362,2]
[401256387,1768078251195,-151.0,0.000179,2]
[401256388,1768078251205,-172.741292,0.000179,2]
[401256389,1768078251214,-151.0,0.000179,2]
[401256390,1768078251224,-151.0,0.000179,2]
[401256391,1768078251233,-151.0,0.00017968,2]
[401256392,1768078251243,-172.741292,0.00017968,2]
[401256393,1768078251253,-151.0,0.00017968,2]
[401256394,1768078251262,-151.0,0.00017968,2]
[401256395,1768078251271,-6690.517416,0.00018,2]
[401256396,1768078747373,210.14,0.00014,2]
[401256397,1768078849406,-500.0,0.00014987,2]
[401256398,1768078849428,-420.0,0.00014987,2]
[401256399,1768079037404,-1026.71495631,0.0002041,30]
[401256400,1768079037465,-2000.0,0.000205,30]
[401256401,1768079037523,-1726.0,0.000205,30]
[401256402,1768079037588,-167.60889231,0.00020603,30]
[401256403,1768079037647,-251.41333846,0.00020603,30]
[401256404,1768079037706,-80323.99749223,0.000209,30]
[401256405,1768079037789,-10000.0,0.000225,30]
[401256406,1768079037847,-1654.92155696,0.000225,30]
[401256407,1768079037904,-354.33491453,0.000226,30]
[401256408,1768079037959,-1000.0,0.000226,30]
[401256409,1768079038020,-27092.74522438,0.00023,30]
[401256410,1768079038077,-0.28560913,0.00023,120]
[401256411,1768079038136,-559.9155446,0.00023013,120]
[401256412,1768079038198,-878.51595379,0.00024,30]
[401256413,1768079038267,-1096.9,0.00025339,120]
[401256414,1768079038329,-260.98790933,0.00026,120]
[401256415,1768079038390,-522.34,0.00026116,120]
[401256416,1768079038451,-522.34,0.00026145,120]
[401256417,1768079038509,-522.34,0.00026175,120]
[401256418,1768079038567,-522.34,0.00026207,120]
[401256419,1768079038625,-522.34,0.00026241,120]
[401256420,1768079038684,-160.34370946,0.00026275,56]
[401256421,1768079038746,-312.44796488,0.00026275,56]
[401256422,1768079038805,-522.34,0.00026277,120]
[401256423,1768079038862,-522.34,0.00026314,120]
[401256424,1768079038924,-522.34,0.00026355,120]
[401256425,1768079038983,-195.06981832,0.00026369,56]
[401256426,1768079039044,-522.34,0.00026398,120]
[401256427,1768079039105,-522.34,0.00026444,120]
[401256428,1768079039164,-522.34,0.00026494,120]
[401256429,1768079039229,-522.34,0.00026548,120]
[401256430,1768079039292,-522.34,0.00026607,120]
[401256431,1768079039354,-522.34,0.00026673,120]
[401256432,1768079039429,-522.34,0.00026746,120]
[401256433,1768079039495,-522.34,0.0002683,120]
[401256434,1768079039558,-522.34,0.00026926,120]
[401256435,1768079039616,-465.40846284,0.00027,30]
[401256436,1768079039675,-1074.97183399,0.00027,30]
[401256437,1768079039734,-500.0,0.00027,120]
[401256438,1768079039794,-522.34,0.0002704,120]
[401256439,1768079039853,-522.34,0.00027179,120]
[401256440,1768079039913,-522.34,0.00027359,120]
[401256441,1768079039975,-362.14050344,0.00027397,44]
[401256442,1768079040035,-273.32419866,0.00027397,48]
[401256443,1768079040096,-848.4,0.00027397,37]
[401256444,1768079040158,-728.05413005,0.00027397,38]
[401256445,1768079040224,-1629.62,0.00027397,30]
[401256446,1768079040294,-341.54434489,0.00028,120]
[401256447,1768079040362,-500.0,0.00028,120]
[401256448,1768079040424,-380.0,0.00028,120]
[401256449,1768079040488,-500.0,0.000284,120]
[401256450,1768079040570,-3300.0,0.00028767,120]
[401256451,1768079040641,-500.0,0.00028767,120]
[401256452,1768079040706,-204.0,0.0002882,30]
[401256453,1768079040777,-500.0,0.00028822,120]
[401256454,1768079040846,-257.44022117,0.00028877,120]
[401256455,1768079040916,-198.56136699,0.00028978,120]
[401256456,1768079040984,-160.34370945,0.00029078,120]
[401256457,1768079041053,-7106.61124692,0.000296,30]
[401256458,1768079041123,-312.44796488,0.0002995,110]
[401256459,1768079041191,-611.72858544,0.0003,30]
[401256460,1768079041262,-510.70902803,0.0003,30]
[401256461,1768079041336,-1300.0,0.0003,120]
[401256462,1768079041405,-5352.70766841,0.0003,120]
[401256463,1768079041471,-503.0,0.0003,120]
[401256464,1768079041536,-116063.96524021,0.0003,120]
[401256465,1768079041597,-824.47286548,0.0003,120]
[401256466,1768079041663,-739.74393533,0.0003,30]
[401256467,1768079041731,-1941.0,0.000301,120]
[401256468,1768079041796,-195.63749589,0.0003013,30]
[401256469,1768079041860,-300.0,0.0003013,30]
[401256470,1768079041924,-1200.0,0.00030136,30]
[401256471,1768079041994,-500.0,0.00030136,120]
[401256472,1768079042069,-500.0,0.00030136,120]
[401256473,1768079042139,-500.0,0.00030136,120]
[401256474,1768079042208,-500.0,0.00030136,120]
[401256475,1768079042273,-500.0,0.00030136,120]
[401256476,1768079042338,-323.68955479,0.00030136,120]
[401256477,1768079042411,-500.0,0.00030136,120]
[401256478,1768079042476,-500.0,0.00030136,120]
[401256479,1768079042538,-500.0,0.00030136,120]
[401256480,1768079042601,-500.0,0.00030136,120]
[401256481,1768079042666,-500.0,0.00030136,120]
[401256482,1768079042734,-307.53361152,0.00030136,120]
[401256483,1768079042796,-500.0,0.00030136,60]
[401256484,1768079042858,-500.0,0.00030136,60]
[401256485,1768079042920,-512.77189093,0.00030136,60]
[401256486,1768079042983,-500.0,0.00030136,120]
[401256487,1768079043050,-527.88940777,0.00030136,120]
[401256488,1768079043133,-500.0,0.00030136,120]
[401256489,1768079043202,-500.0,0.00030136,120]
[401256490,1768079043271,-500.0,0.00030136,120]
[401256491,1768079043340,-500.0,0.00030136,120]
[401256492,1768079043407,-537.05653843,0.00030136,60]
[401256493,1768079043471,-500.0,0.00030136,120]
[401256494,1768079043538,-502.10445571,0.00030136,120]
[401256495,1768079043606,-200.0,0.00030136,120]
[401256496,1768079043676,-500.0,0.00030136,120]
[401256497,1768079043740,-500.0,0.00030136,120]
[401256498,1768079043802,-500.0,0.00030136,120]
[401256499,1768079043864,-500.0,0.00030136,120]
[401256500,1768079043926,-500.0,0.00030136,120]
[401256501,1768079043990,-500.0,0.00030136,120]
[401256502,1768079044053,-500.0,0.00030136,120]
[401256503,1768079044116,-500.0,0.00030136,120]